bitfinex/quotes_SOLUSD_20240703
["timestamp","ask_amount","ask_price","bid_price","bid_amount"]
[1719988112878,15.45,149.03,148.97,15.11]
[1719988114471,0.34,149.03,148.96,28.5154]
[1719988114681,15.11,149.01,148.96,28.5154]
[1719988114867,15.11,149.01,148.96,36.9126]
[1719988115978,15.11,149.01,148.96,43.6257]
[1719988116777,0.34,149.03,148.96,43.6257]
[1719988117081,15.11,149.02,148.97,21.8226]
[1719988118083,15.11,149.02,148.97,15.11]
[1719988119165,22.11164898,149.02,148.97,15.11]
[1719988119566,22.11164898,149.02,148.96,43.6256]
[1719988121568,15.11,149.01,148.96,15.1766]
[1719988121776,15.28,149.0,148.96,15.1766]
[1719988123674,15.28,149.0,148.96,21.8898]
[1719988123999,0.17,149.01,148.97,6.7127]
[1719988124181,22.11164898,149.02,148.97,6.7127]
[1719988124980,22.11164898,149.02,148.96,53.7823]
[1719988125767,15.28,149.01,148.96,53.7823]
[1719988126789,15.28,149.01,148.93,0.87656956]
[1719988126790,16.542,149.0,148.93,0.87656956]
[1719988126975,15.11,148.97,148.93,0.87656956]
[1719988127381,15.11,148.96,148.93,0.87656956]
[1719988127978,15.11,148.96,148.93,7.59106956]
[1719988128375,15.11,148.96,148.93,0.87656956]
[1719988128581,15.11,148.95,148.93,0.87656956]
[1719988128767,0.17,148.97,148.93,0.87656956]
[1719988128768,15.11,148.94,148.93,0.87656956]
[1719988132489,7.00223871,148.96,148.93,0.87656956]
[1719988132696,15.11,148.95,148.93,0.87656956]
[1719988133299,7.00223871,148.96,148.93,0.87656956]
[1719988133504,15.11,148.95,148.93,0.87656956]
[1719988135295,15.11,148.94,148.93,0.87656956]
[1719988136884,15.11,148.95,148.93,0.87656956]
[1719988138405,15.11,148.94,148.93,0.87656956]
[1719988141785,7.00223871,148.96,148.93,0.87656956]
[1719988142114,22.11223871,148.96,148.93,0.87656956]
[1719988142712,15.11,148.95,148.93,0.87656956]
[1719988144412,15.11,148.94,148.93,0.87656956]
[1719988144708,15.45,148.94,148.93,0.87656956]
[1719988145728,22.45144546,148.94,148.93,0.87656956]
[1719988145923,7.00144546,148.94,148.93,0.87656956]
[1719988146115,22.11144546,148.94,148.93,0.87656956]
[1719988147993,22.45144546,148.94,148.93,0.87656956]
[1719988148813,7.34144546,148.94,148.93,0.87656956]
[1719988149024,22.45144546,148.94,148.93,0.87656956]
[1719988151235,22.11144546,148.94,148.93,0.87656956]
[1719988152307,22.28144546,148.94,148.93,0.87656956]
[1719988157929,22.45144546,148.94,148.93,0.87656956]
[1719988163720,42.45144546,148.94,148.93,0.87656956]
[1719988172438,42.45144546,148.94,148.85,29.5166]
[1719988172646,15.11,148.88,148.86,45.0]
[1719988175746,6.98383345,148.9,148.86,60.11]
[1719988175922,45.33,148.96,148.9,22.6527]
[1719988176122,6.98730991,148.96,148.93,16.7859]
[1719988176320,15.11,148.99,148.95,6.7136]
[1719988176540,15.11,148.99,148.96,45.0]
[1719988176848,15.11,148.98,148.96,45.0]
[1719988177025,15.11,148.97,148.96,45.0]
[1719988178221,15.11,148.97,148.91,15.11]
[1719988178439,6.98583854,148.99,148.9,22.6527]
[1719988178440,15.11,148.95,148.9,22.6527]
[1719988178747,15.11,148.94,148.9,22.6527]
[1719988179522,15.11,148.93,148.9,22.6527]
[1719988180658,6.98583854,148.99,148.9,22.6527]
[1719988180827,15.11,148.96,148.91,6.7153]
[1719988181029,15.11,148.95,148.92,45.0]
[1719988181631,15.11,148.95,148.91,45.0]
[1719988182034,15.11,148.94,148.91,51.7154]
[1719988182401,15.11,148.96,148.91,51.7154]
[1719988182547,0.34,148.98,148.92,6.715]
[1719988182729,15.11,148.97,148.93,45.0]
[1719988183142,15.11,148.96,148.93,45.0]
[1719988184063,6.98583854,148.99,148.95,31.5705]
[1719988184239,15.11,149.02,148.97,16.7814]
[1719988184435,15.11,149.0,148.98,45.0]
[1719988184636,15.11,149.0,148.96,45.0]
[1719988184845,22.09719037,149.01,148.96,45.0]
[1719988186332,0.17,149.0,148.96,45.0]
[1719988186554,15.11,148.99,148.96,45.0]
[1719988187460,15.11,148.97,148.96,45.0]
[1719988187754,15.11,148.98,148.96,45.0]
[1719988187954,15.11,148.98,148.95,45.0]
[1719988188129,15.11,148.98,148.94,6.714]
[1719988188755,0.34,149.0,148.94,6.714]
[1719988188951,15.11,148.98,148.94,6.714]
[1719988189159,0.34,149.0,148.94,6.714]
[1719988189351,15.11,148.99,148.94,6.714]
[1719988189655,15.11,148.99,148.95,45.0]
[1719988190266,15.11,148.99,148.95,51.7136]
[1719988190949,15.11,149.0,148.95,66.8236]
[1719988191245,6.98719037,149.01,148.96,21.8231]
[1719988191450,6.98719037,149.01,148.97,45.0]
[1719988191856,6.98719037,149.01,148.97,66.8225]
[1719988192157,15.11,149.03,148.98,15.11]
[1719988192370,22.09693691,149.03,148.99,45.0]
[1719988193061,15.11,149.02,148.99,45.0]
[1719988193562,7.15693691,149.03,148.98,45.0]
[1719988193772,6.98693691,149.03,148.99,21.8218]
[1719988193956,22.09693691,149.03,149.0,45.0]
[1719988194160,22.09693691,149.03,148.98,45.0]
[1719988194458,15.11,149.02,148.98,45.0]
[1719988194780,22.09693691,149.03,148.98,45.0]
[1719988195875,15.11,149.02,148.98,45.0]
[1719988196076,15.11,149.02,148.97,45.0]
[1719988196870,15.11,149.02,148.97,51.7127]
[1719988197069,22.09693691,149.03,148.97,66.8227]
[1719988198191,6.98693691,149.03,148.97,66.8227]
[1719988198387,22.09693691,149.03,148.98,15.11]
[1719988198677,22.09693691,149.03,148.99,45.0]
[1719988198863,22.09693691,149.03,148.97,66.8227]
[1719988199559,22.09693691,149.03,148.98,15.11]
[1719988199757,22.09693691,149.03,148.99,45.0]
[1719988200158,6.98693691,149.03,148.99,45.0]
[1719988200365,6.98693691,149.03,149.0,15.11]
[1719988200570,16.0787,149.07,149.01,45.0]
[1719988200891,6.98500669,149.05,149.01,45.0]
[1719988201888,22.09500669,149.05,149.01,45.0]
[1719988202058,6.98500669,149.05,149.01,45.0]
[1719988202258,6.98500669,149.05,149.02,15.11]
[1719988202460,0.17,149.06,149.03,45.0]
[1719988203289,22.09224843,149.07,149.03,45.0]
[1719988204576,15.11,149.06,149.03,45.0]
[1719988204765,15.11,149.06,149.02,45.0]
[1719988207493,15.11,149.04,149.02,45.0]
[1719988209372,6.98224843,149.07,149.03,21.8199]
[1719988209570,15.11,149.09,149.04,66.8195]
[1719988209775,15.11,149.09,149.05,45.0]
[1719988209963,22.09395609,149.09,149.05,45.0]
[1719988212497,17.87106954,149.14,149.07,6.7078]
[1719988212498,6.03494905,149.14,149.07,6.7078]
[1719988212668,15.11,149.13,149.08,66.8177]
[1719988212868,6.98329688,149.12,149.08,66.8177]
[1719988213182,6.98329688,149.12,149.08,45.0]
[1719988213584,6.98329688,149.12,149.07,45.0]
[1719988214292,6.98329688,149.12,149.07,51.7081]
[1719988214984,22.09329688,149.12,149.07,45.0]
[1719988215185,22.09329688,149.12,149.06,45.0]
[1719988215579,22.09329688,149.12,149.06,60.11]
[1719988215781,22.09329688,149.12,149.07,15.11]
[1719988215983,22.09329688,149.12,149.08,45.0]
[1719988216795,22.09329688,149.12,149.07,60.11]
[1719988218389,22.09329688,149.12,149.07,45.0]
[1719988218585,15.11,149.1,149.06,45.0]
[1719988219918,15.11,149.11,149.06,60.11]
[1719988220592,15.11,149.11,149.06,51.7086]
[1719988220795,15.11,149.11,149.06,66.8186]
[1719988221599,6.98329688,149.12,149.1,6.7064]
[1719988221792,6.98329688,149.12,149.11,66.8164]
[1719988221992,16.194,149.2,149.11,60.11]
[1719988222188,16.194,149.2,149.14,21.8147]
[1719988222189,6.97443072,149.17,149.14,21.8147]
[1719988222373,15.11,149.19,149.15,45.0]
[1719988222775,6.97437795,149.17,149.15,45.0]
[1719988223186,22.08437795,149.17,149.14,45.0]
[1719988223400,22.08437795,149.17,149.13,45.0]
[1719988223777,6.97437795,149.17,149.13,45.0]
[1719988224107,0.17,149.18,149.16,6.704]
[1719988224408,6.97187438,149.18,149.17,51.7037]
[1719988224582,16.3936,149.24,149.18,6.7032]
[1719988224906,6.97718844,149.23,149.19,45.0]
[1719988225501,6.03494905,149.28,149.2,6.7022]
[1719988225699,6.97587758,149.27,149.21,45.0]
[1719988226480,6.97587758,149.27,149.2,45.0]
[1719988226700,6.97587758,149.27,149.19,45.0]
[1719988227371,0.34,149.26,149.19,45.0]
[1719988228204,0.34,149.26,149.18,45.0]
[1719988230191,0.34,149.26,149.17,45.0]
[1719988231494,30.29,149.25,149.15,6.7046]
[1719988231693,20.34,149.24,149.15,6.7046]
[1719988232680,20.34,149.24,149.16,45.0]
[1719988234879,6.5043,149.23,149.16,45.0]
[1719988235081,0.34,149.22,149.16,45.0]
[1719988235526,16.8315,149.22,149.16,45.0]
[1719988236006,6.98798074,149.21,149.16,45.0]
[1719988236215,0.34,149.2,149.16,45.0]
[1719988236585,0.34,149.2,149.11,15.8494]
[1719988236586,0.34,149.2,149.15,45.0]
[1719988236788,0.34,149.2,149.15,51.7045]
[1719988238085,0.34,149.2,149.15,45.0]
[1719988238403,6.98798074,149.21,149.15,45.0]
[1719988239694,6.98798074,149.21,149.18,6.7031]
[1719988239891,6.98798074,149.21,149.19,45.0]
[1719988241615,6.98798074,149.21,149.18,51.7031]
[1719988242015,6.98798074,149.21,149.19,6.7028]
[1719988242311,16.7801829,149.3,149.2,45.0]
[1719988242790,16.7801829,149.3,149.23,6.7006]
[1719988242791,6.98906108,149.29,149.23,6.7006]
[1719988243120,6.98906108,149.29,149.24,45.0]
[1719988243489,6.98906108,149.29,149.23,45.0]
[1719988243906,0.17,149.28,149.23,45.0]
[1719988244110,0.34,149.28,149.23,51.7008]
[1719988246090,0.34,149.28,149.23,45.0]
[1719988246516,0.34,149.28,149.23,51.701]
[1719988246707,0.34,149.28,149.23,45.0]
[1719988248190,0.34,149.28,149.22,45.0]
[1719988253018,6.98790306,149.27,149.22,45.0]
[1719988253402,6.98790306,149.27,149.24,6.7004]
[1719988253603,6.98790306,149.27,149.25,45.0]
[1719988253820,22.10790306,149.27,149.25,45.0]
[1719988254528,22.10790306,149.27,149.24,45.0]
[1719988254899,22.10790306,149.27,149.24,51.7005]
[1719988255101,6.98790306,149.27,149.24,51.7005]
[1719988255615,0.8367829,149.3,149.26,21.8197]
[1719988255815,0.8367829,149.3,149.27,45.0]
[1719988259933,0.8367829,149.3,149.26,45.0]
[1719988260642,0.8367829,149.3,149.18,16.0477]
[1719988260806,0.34,149.29,149.18,16.0477]
[1719988261204,0.34,149.29,149.18,36.2377]
[1719988261834,0.34,149.29,149.23,6.7009]
[1719988262039,0.34,149.29,149.24,45.0]
[1719988266107,6.99141306,149.28,149.24,45.0]
[1719988266312,0.34,149.27,149.24,45.0]
[1719988268615,22.3965,149.27,149.18,16.0477]
[1719988268821,22.3965,149.27,149.17,6.7033]
[1719988269015,52.6365,149.27,149.16,6.7039]
[1719988269226,52.6365,149.27,149.15,16.5085]
[1719988269414,52.6365,149.27,149.17,6.7035]
[1719988270438,59.07733794,149.27,149.16,6.7041]
[1719988270643,30.24,149.24,149.13,6.0491]
[1719988270945,0.34,149.23,149.14,6.7047]
[1719988271538,0.34,149.23,149.13,6.7054]
[1719988271846,0.34,149.23,149.14,6.7049]
[1719988272043,0.34,149.23,149.15,51.7046]
[1719988272215,0.34,149.23,149.15,45.0]
[1719988272411,16.0078,149.22,149.14,45.0]
[1719988272616,0.34,149.21,149.13,45.0]
[1719988273025,0.34,149.21,149.17,6.7037]
[1719988273223,0.34,149.21,149.18,45.0]
[1719988273641,0.34,149.21,149.17,51.7036]
[1719988274541,0.34,149.21,149.17,45.0]
[1719988275438,15.6646,149.26,149.17,45.0]
[1719988275640,0.34,149.25,149.17,45.0]
[1719988275823,15.6646,149.26,149.17,45.0]
[1719988276020,15.6646,149.26,149.18,6.7032]
[1719988276218,15.6646,149.26,149.19,45.0]
[1719988276640,6.99016052,149.25,149.19,45.0]
[1719988277236,0.17,149.24,149.19,45.0]
[1719988277529,0.34,149.24,149.19,45.0]
[1719988278537,0.34,149.24,149.18,45.0]
[1719988281059,0.34,149.24,149.2,45.0]
[1719988282451,0.17,149.24,149.2,45.0]
[1719988282642,6.99016052,149.25,149.2,45.0]
[1719988283855,0.34,149.24,149.19,45.0]
[1719988284040,0.34,149.24,149.18,45.0]
[1719988285059,0.34,149.24,149.18,51.7032]
[1719988286839,6.99076766,149.23,149.18,51.7032]
[1719988287833,6.99076766,149.23,149.2,6.7021]
[1719988288143,16.0476829,149.3,149.21,46.33802552]
[1719988288450,16.0476829,149.3,149.22,1.33793584]
[1719988288834,6.98832411,149.29,149.22,8.03923584]
[1719988289029,6.98832411,149.29,149.23,45.0]
[1719988289658,6.98832411,149.29,149.24,1.33748759]
[1719988289659,0.34,149.28,149.24,1.33748759]
[1719988289958,0.34,149.28,149.24,16.45748759]
[1719988289959,0.17,149.28,149.24,16.45748759]
[1719988290157,0.17,149.28,149.25,45.0]
[1719988290533,6.98832411,149.29,149.25,60.12]
[1719988291840,6.98832411,149.29,149.25,45.0]
[1719988294864,6.98832411,149.29,149.24,45.0]
[1719988295858,6.98832411,149.29,149.24,51.7006]
[1719988298664,6.98832411,149.29,149.24,45.0]
[1719988298867,0.8367829,149.3,149.24,45.0]
[1719988299245,0.8367829,149.3,149.27,6.6989]
[1719988299446,0.8367829,149.3,149.24,45.0]
[1719988299447,0.8367829,149.3,149.28,45.0]
[1719988299649,0.8367829,149.3,149.27,45.0]
[1719988309982,0.8367829,149.3,149.26,45.0]
[1719988310665,0.8367829,149.3,149.27,6.6989]
[1719988310861,0.8367829,149.3,149.28,45.0]
[1719988311063,0.8367829,149.3,149.26,51.6995]
[1719988313852,0.8367829,149.3,149.28,15.11]
[1719988314087,0.8367829,149.3,149.29,45.0]
[1719988315003,0.8367829,149.3,149.28,45.0]
[1719988315283,0.8367829,149.3,149.28,60.11]
[1719988316886,0.8367829,149.3,149.25,15.11]
[1719988317193,22.93548265,149.3,149.25,15.11]
[1719988317565,22.93548265,149.3,149.25,21.8101]
[1719988318089,7.82548265,149.3,149.26,15.11]
[1719988318387,7.82548265,149.3,149.27,45.0]
[1719988323576,7.82548265,149.3,149.27,60.11]
[1719988323995,7.82548265,149.3,149.27,66.809]
[1719988324481,7.82548265,149.3,149.28,6.6987]
[1719988324677,7.82548265,149.3,149.29,45.0]
[1719988324678,0.8367829,149.3,149.29,45.0]
[1719988325079,0.8367829,149.3,149.29,60.11]
[1719988326702,0.8367829,149.3,149.29,117.694]
[1719988327005,31.1734,149.4,149.34,6.696]
[1719988327006,16.0634,149.4,149.34,6.696]
[1719988327206,15.2712,149.42,149.36,15.11]
[1719988327207,15.11,149.41,149.36,15.11]
[1719988327529,22.0897458,149.41,149.36,15.11]
[1719988327809,22.0897458,149.41,149.37,45.0]
[1719988328388,15.11,149.4,149.37,45.0]
[1719988328700,0.34,149.39,149.36,45.0]
[1719988328913,15.11,149.4,149.36,45.0]
[1719988329111,15.11,149.4,149.35,45.0]
[1719988329487,15.11,149.4,149.35,60.11]
[1719988329917,6.9797458,149.41,149.35,60.11]
[1719988330119,15.11,149.4,149.35,60.11]
[1719988330415,15.11,149.38,149.35,45.0]
[1719988330619,15.11,149.38,149.31,6.6971]
[1719988330821,0.34,149.37,149.33,15.11]
[1719988330989,15.11,149.39,149.33,15.11]
[1719988331713,15.45,149.38,149.33,15.11]
[1719988331902,15.28,149.38,149.34,45.0]
[1719988332296,15.28,149.37,149.34,45.0]
[1719988332549,15.11,149.37,149.34,45.0]
[1719988332706,15.11,149.37,149.33,45.0]
[1719988333017,15.45,149.38,149.33,45.0]
[1719988334793,15.11,149.37,149.33,45.0]
[1719988335494,0.34,149.38,149.33,45.0]
[1719988335716,15.45,149.38,149.33,66.8065]
[1719988336919,15.45,149.38,149.33,60.11]
[1719988337223,0.34,149.38,149.33,60.11]
[1719988337534,15.45,149.38,149.33,60.11]
[1719988337720,22.41509449,149.38,149.33,60.11]
[1719988338030,22.41509449,149.38,149.33,66.8065]
[1719988340422,6.96509449,149.38,149.35,6.6956]
[1719988340624,6.96509449,149.38,149.36,45.0]
[1719988341025,6.96509449,149.38,149.37,6.6947]
[1719988341211,15.11,149.41,149.37,51.6947]
[1719988341521,22.07989534,149.41,149.38,45.0]
[1719988341908,22.07989534,149.41,149.37,45.0]
[1719988343123,0.34,149.4,149.37,45.0]
[1719988343625,0.34,149.4,149.37,51.6947]
[1719988343832,0.34,149.4,149.37,45.0]
[1719988344131,0.34,149.4,149.36,45.0]
[1719988345623,0.17,149.4,149.36,45.0]
[1719988346919,0.17,149.4,149.34,6.6959]
[1719988346920,0.17,149.4,149.35,45.0]
[1719988347632,15.11,149.39,149.35,45.0]
[1719988347821,15.11,149.38,149.34,45.0]
[1719988348738,15.11,149.38,149.34,51.696]
[1719988350308,15.11,149.39,149.34,66.806]
[1719988350523,15.28,149.4,149.35,6.6956]
[1719988350722,15.11,149.39,149.36,45.0]
[1719988350920,0.17,149.4,149.36,45.0]
[1719988351133,15.11,149.37,149.36,45.0]
[1719988351330,0.34,149.4,149.36,45.0]
[1719988351509,15.11,149.37,149.36,45.0]
[1719988352009,21.7147,149.36,149.25,1.16526492]
[1719988352213,21.7147,149.36,149.27,6.6992]
[1719988352214,15.11,149.3,149.27,6.6992]
[1719988352411,15.11,149.3,149.26,6.6995]
[1719988352707,15.11,149.3,149.25,21.8101]
[1719988352932,15.11,149.3,149.25,6.7001]
[1719988353143,15.11,149.3,149.26,6.6996]
[1719988353735,15.11,149.29,149.26,6.6996]
[1719988354508,15.11,149.29,149.27,45.0]
[1719988355235,15.11,149.3,149.27,51.6991]
[1719988355437,22.0547,149.36,149.27,51.6991]
[1719988355631,15.11,149.31,149.28,6.6987]
[1719988355936,22.0547,149.36,149.29,45.0]
[1719988355937,15.11,149.32,149.29,45.0]
[1719988356642,0.34,149.33,149.29,51.698]
[1719988356852,15.11,149.33,149.29,45.0]
[1719988357020,15.11,149.33,149.29,51.6982]
[1719988357430,15.11,149.33,149.29,45.0]
[1719988357636,15.11,149.32,149.28,45.0]
[1719988357921,15.11,149.31,149.28,45.0]
[1719988359647,15.11,149.29,149.23,15.7025]
[1719988359822,15.11,149.3,149.24,15.11]
[1719988360143,15.11,149.3,149.25,6.6997]
[1719988361325,15.11,149.3,149.25,21.8097]
[1719988361530,15.11,149.3,149.26,45.0]
[1719988361746,15.11,149.3,149.26,51.6995]
[1719988364823,15.11,149.3,149.26,45.0]
[1719988365434,15.11,149.3,149.25,45.0]
[1719988365825,15.11,149.3,149.25,51.7001]
[1719988366342,15.11,149.3,149.26,6.6995]
[1719988366532,15.11,149.3,149.27,45.0]
[1719988367133,6.97669131,149.31,149.27,51.6991]
[1719988367449,22.08669131,149.31,149.27,51.6991]
[1719988370069,22.08669131,149.31,149.27,45.0]
[1719988370458,6.97669131,149.31,149.27,60.11]
[1719988371140,6.97669131,149.31,149.27,45.0]
[1719988371345,6.97669131,149.31,149.27,66.8091]
[1719988371936,6.97669131,149.31,149.28,6.6985]
[1719988372144,6.97669131,149.31,149.29,45.0]
[1719988372458,22.0885505,149.33,149.29,45.0]
[1719988378134,22.0885505,149.33,149.28,45.0]
[1719988380735,6.9785505,149.33,149.29,15.11]
[1719988380951,28.3533935,149.4,149.3,60.11]
[1719988381148,6.97337804,149.35,149.3,15.11]
[1719988381371,6.97337804,149.35,149.31,60.11]
[1719988381571,15.11,149.36,149.31,60.11]
[1719988382081,0.17,149.37,149.31,60.11]
[1719988382265,15.11,149.36,149.31,60.11]
[1719988382663,28.3533935,149.4,149.31,60.11]
[1719988382870,15.11,149.36,149.31,60.11]
[1719988383455,28.3533935,149.4,149.31,60.11]
[1719988383682,15.11,149.36,149.31,60.11]
[1719988384178,28.3533935,149.4,149.32,15.11]
[1719988384388,15.11,149.38,149.33,60.11]
[1719988385481,16.1798,149.42,149.34,15.11]
[1719988385788,16.1798,149.42,149.35,60.11]
[1719988385965,15.11,149.41,149.35,60.11]
[1719988386482,15.11,149.41,149.36,15.11]
[1719988386662,15.11,149.41,149.37,45.0]
[1719988388672,11.25716791,149.44,149.37,60.11]
[1719988388874,11.25716791,149.44,149.39,15.11]
[1719988388875,15.11,149.44,149.39,15.11]
[1719988389078,6.97444117,149.43,149.4,45.0]
[1719988389373,22.08444117,149.43,149.4,45.0]
[1719988390983,15.11,149.42,149.4,45.0]
[1719988392283,6.97444117,149.43,149.4,45.0]
[1719988392461,22.08444117,149.43,149.4,45.0]
[1719988395282,15.11,149.42,149.4,45.0]
[1719988396303,6.97444117,149.43,149.4,45.0]
[1719988396667,6.97444117,149.43,149.4,51.6933]
[1719988397169,6.97444117,149.43,149.4,45.0]
[1719988397367,6.97444117,149.43,149.4,51.6934]
[1719988397754,6.97444117,149.43,149.4,45.0]
[1719988401372,6.97444117,149.43,149.4,51.6933]
[1719988401572,15.9467829,149.45,149.4,66.8033]
[1719988401776,22.9100423,149.45,149.4,66.8033]
[1719988403175,22.9100423,149.45,149.4,51.6933]
[1719988403560,15.11,149.44,149.4,45.0]
[1719988403987,15.11,149.43,149.39,15.338]
[1719988404363,15.11,149.43,149.37,27.8623]
[1719988404364,0.17,149.44,149.37,6.0576]
[1719988404569,0.34,149.44,149.37,6.0576]
[1719988404775,15.11,149.42,149.37,21.1676]
[1719988404991,0.34,149.44,149.37,21.1676]
[1719988405198,15.11,149.42,149.37,21.1676]
[1719988405997,15.11,149.42,149.37,27.8623]
[1719988406398,15.11,149.42,149.37,21.1676]
[1719988406566,15.28,149.41,149.35,16.209]
[1719988406775,15.11,149.4,149.35,31.319]
[1719988407278,15.11,149.4,149.35,38.0145]
[1719988409581,15.11,149.41,149.36,6.6952]
[1719988411997,0.17,149.42,149.37,15.11]
[1719988412303,0.8367829,149.45,149.4,21.8034]
[1719988412304,15.9467829,149.45,149.4,21.8034]
[1719988412506,15.9467829,149.45,149.41,6.6929]
[1719988412806,22.92221568,149.45,149.41,6.6929]
[1719988412980,22.92221568,149.45,149.4,21.8032]
[1719988414105,7.81221568,149.45,149.42,21.8025]
[1719988414315,7.81221568,149.45,149.43,21.802]
[1719988414474,0.8367829,149.45,149.43,21.802]
[1719988415088,0.8367829,149.45,149.44,15.11]
[1719988415672,0.8367829,149.45,149.43,15.11]
[1719988415895,0.8367829,149.45,149.42,21.8024]
[1719988416282,0.8367829,149.45,149.4,15.6271]
[1719988416502,0.8367829,149.45,149.41,15.11]
[1719988416881,0.8367829,149.45,149.42,15.11]
[1719988417382,0.8367829,149.45,149.42,21.8021]
[1719988418697,0.8367829,149.45,149.4,15.6271]
[1719988418916,15.11,149.44,149.4,15.6271]
[1719988419116,0.8367829,149.45,149.38,6.1307]
[1719988419117,15.11,149.43,149.38,21.2407]
[1719988419785,15.11,149.43,149.38,6.1307]
[1719988420519,15.11,149.43,149.38,21.2407]
[1719988420994,15.11,149.42,149.37,6.6947]
[1719988421187,0.8367829,149.45,149.37,6.6947]
[1719988421188,15.11,149.41,149.37,6.6947]
[1719988421595,15.11,149.41,149.36,15.031]
[1719988421794,15.11,149.4,149.36,15.031]
[1719988421990,15.11,149.41,149.36,21.7259]
[1719988422307,15.11,149.4,149.37,6.6946]
[1719988422902,15.11,149.41,149.37,6.6946]
[1719988423718,15.9467829,149.45,149.37,6.6946]
[1719988424018,0.34,149.44,149.37,6.6946]
[1719988424908,6.96787349,149.43,149.37,6.6946]
[1719988425117,0.17,149.42,149.37,6.6946]
[1719988425609,0.17,149.42,149.36,36.8361]
[1719988425797,0.17,149.42,149.36,21.7261]
[1719988426316,0.34,149.42,149.36,21.7261]
[1719988430002,15.11,149.38,149.34,6.1814]
[1719988430314,15.11,149.37,149.34,6.1814]
[1719988430694,15.11,149.37,149.34,12.8774]
[1719988431325,15.11,149.37,149.35,6.6956]
[1719988431503,15.11,149.38,149.35,6.6956]
[1719988432396,15.11,149.38,149.34,12.8774]
[1719988432599,15.11,149.37,149.34,12.8774]
[1719988432815,15.11,149.38,149.34,12.8774]
[1719988434697,15.11,149.37,149.34,6.1814]
[1719988434897,15.11,149.37,149.33,6.6965]
[1719988435195,15.11,149.36,149.32,22.7727]
[1719988435793,15.11,149.36,149.33,6.6965]
[1719988436637,22.07367951,149.37,149.33,6.6965]
[1719988438616,6.96367951,149.37,149.34,6.6959]
[1719988438822,22.07367951,149.37,149.32,31.1859]
[1719988439632,22.07367951,149.37,149.33,6.6964]
[1719988439930,15.11,149.36,149.32,22.7727]
[1719988440604,15.11,149.35,149.31,6.6973]
[1719988440911,15.11,149.33,149.28,15.9965]
[1719988441117,6.96367951,149.37,149.29,6.698]
[1719988441118,15.11,149.32,149.29,6.698]
[1719988442340,15.11,149.32,149.3,6.6978]
[1719988442835,15.11,149.33,149.3,6.6978]
[1719988443341,15.11,149.33,149.29,6.6983]
[1719988443640,15.11,149.32,149.28,22.6951]
[1719988443814,15.11,149.31,149.28,22.6951]
[1719988449036,15.11,149.31,149.28,15.9965]
[1719988449331,15.11,149.3,149.27,6.6991]
[1719988449751,6.96327309,149.32,149.27,6.6991]
[1719988449956,15.11,149.31,149.28,6.6987]
[1719988450243,15.11,149.31,149.27,6.6991]
[1719988450922,15.11,149.3,149.27,6.6991]
[1719988451829,15.11,149.31,149.27,6.6991]